fUSD/lending_fUSD_20260517
["ID","MTS","AMOUNT","RATE_DAILY","PERIOD"]
[422508542,1779006654000,-500.0,0.00040499,120]
[422508547,1779006654000,-100000.0,0.00040499,30]
[422508548,1779006654000,-11000.0,0.00040499,120]
[422508549,1779006654000,-100000.0,0.00040499,30]
[422508546,1779006654000,-100000.0,0.00040499,30]
[422508550,1779006654000,-163.92,0.00040499,120]
[422508554,1779006654000,-273.51692486,0.00040499,60]
[422508552,1779006654000,-273.51692486,0.00040499,60]
[422508551,1779006654000,-273.51692486,0.00040499,60]
[422508553,1779006654000,-273.51692486,0.00040499,60]
[422508555,1779006654000,-158408.90574541,0.00040499,60]
[422508491,1779006654000,-154.90923201,0.000404,30]
[422508540,1779006654000,-465.59751742,0.00040499,120]
[422508529,1779006654000,-350.0,0.00040448,2]
[422508541,1779006654000,-156.0,0.00040499,120]
[422508520,1779006654000,-408.97,0.00040424,120]
[422508501,1779006654000,-151.0,0.00040424,120]
[422508530,1779006654000,-6616.71663098,0.0004049,120]
[422508503,1779006654000,-5909.11924427,0.00040424,2]
[422508496,1779006654000,-1000.0,0.00040409,90]
[422508498,1779006654000,-2000.0,0.00040424,120]
[422508495,1779006654000,-495.69948996,0.00040401,120]
[422508504,1779006654000,-222.0,0.00040424,120]
[422508497,1779006654000,-151.0,0.00040421,14]
[422508494,1779006654000,-309.77765035,0.00040401,120]
[422508499,1779006654000,-154.0,0.00040424,120]
[422508500,1779006654000,-152.0,0.00040424,120]
[422508506,1779006654000,-408.97,0.00040424,120]
[422508517,1779006654000,-408.97,0.00040424,120]
[422508516,1779006654000,-408.97,0.00040424,120]
[422508518,1779006654000,-408.97,0.00040424,120]
[422508502,1779006654000,-5148.93267477,0.00040424,2]
[422508507,1779006654000,-408.97,0.00040424,120]
[422508505,1779006654000,-408.95,0.00040424,120]
[422508523,1779006654000,-352.63685002,0.0004043,2]
[422508521,1779006654000,-150.0,0.00040424,2]
[422508519,1779006654000,-408.97,0.00040424,120]
[422508510,1779006654000,-408.97,0.00040424,120]
[422508508,1779006654000,-408.97,0.00040424,120]
[422508522,1779006654000,-439.29,0.0004043,10]
[422508513,1779006654000,-408.97,0.00040424,120]
[422508511,1779006654000,-408.97,0.00040424,120]
[422508509,1779006654000,-408.97,0.00040424,120]
[422508515,1779006654000,-408.97,0.00040424,120]
[422508512,1779006654000,-408.97,0.00040424,120]
[422508514,1779006654000,-408.97,0.00040424,120]
[422508587,1779006655000,-165.71118725,0.00040499,120]
[422508601,1779006655000,-63265.51413939,0.00040499,30]
[422508599,1779006655000,-704.39084441,0.00040499,120]
[422508591,1779006655000,-178318.06207037,0.00040499,2]
[422508585,1779006655000,-2443.39933235,0.00040499,120]
[422508593,1779006655000,-1015.09141504,0.00040499,5]
[422508594,1779006655000,-187.79429231,0.00040499,90]
[422508589,1779006655000,-3947.02252798,0.00040499,12]
[422508595,1779006655000,-15904.31012747,0.00040499,3]
[422508590,1779006655000,-2775.81146996,0.00040499,2]
[422508588,1779006655000,-2023.68869602,0.00040499,2]
[422508602,1779006655000,-500.0,0.00040499,5]
[422508592,1779006655000,-1665.13383581,0.00040499,60]
[422508604,1779006655000,-1221.0,0.00040499,4]
[422508609,1779006655000,-269712.92193784,0.00040499,2]
[422508605,1779006655000,-150.12884668,0.00040499,30]
[422508600,1779006655000,-600.0,0.00040499,5]
[422508610,1779006655000,-3327.77303367,0.00040499,2]
[422508608,1779006655000,-32055.60884649,0.00040499,5]
[422508607,1779006655000,-2036.47393156,0.00040499,4]
[422508606,1779006655000,-15418.38951198,0.00040499,3]
[422508611,1779006655000,-179.92936307,0.00040499,2]
[422508613,1779006655000,-550.0,0.00040499,2]
[422508624,1779006655000,-384.44179284,0.00040499,2]
[422508623,1779006655000,-6000.0,0.00040499,2]
[422508612,1779006655000,-15197.79676069,0.00040499,2]
[422508616,1779006655000,-15347.09920216,0.00040499,2]
[422508614,1779006655000,-11001.35140326,0.00040499,2]
[422508596,1779006655000,-448.8592641,0.00040499,120]
[422508603,1779006655000,-166.13686416,0.00040499,120]
[422508597,1779006655000,-9037.49363968,0.00040499,30]
[422508557,1779006655000,-227.25898422,0.00040499,30]
[422508586,1779006655000,-2522.58322418,0.00040499,2]
[422508620,1779006655000,-501.98166839,0.00040499,3]
[422508558,1779006655000,-182798.90016468,0.00040499,2]
[422508556,1779006655000,-93963.35987459,0.00040499,60]
[422508570,1779006655000,-2063.1482996,0.00040499,5]
[422508568,1779006655000,-52339.04407287,0.00040499,2]
[422508562,1779006655000,-191.72459941,0.00040499,91]
[422508571,1779006655000,-694.33559443,0.00040499,30]
[422508561,1779006655000,-125459.62729386,0.00040499,2]
[422508564,1779006655000,-280.7145327,0.00040499,60]
[422508566,1779006655000,-10998.38615511,0.00040499,3]
[422508560,1779006655000,-172427.13281199,0.00040499,2]
[422508563,1779006655000,-405.33864314,0.00040499,120]
[422508567,1779006655000,-1210.0,0.00040499,2]
[422508559,1779006655000,-585.46817028,0.00040499,5]
[422508569,1779006655000,-721.44251026,0.00040499,2]
[422508565,1779006655000,-33116.51212152,0.00040499,30]
[422508572,1779006655000,-16348.95100961,0.00040499,20]
[422508574,1779006655000,-357.45625575,0.00040499,2]
[422508575,1779006655000,-2876.35414342,0.00040499,2]
[422508579,1779006655000,-992.1595723,0.00040499,2]
[422508576,1779006655000,-220.30523499,0.00040499,120]
[422508583,1779006655000,-503.76420896,0.00040499,2]
[422508577,1779006655000,-898.27917414,0.00040499,30]
[422508573,1779006655000,-332.94717119,0.00040499,30]
[422508580,1779006655000,-1560.25550401,0.00040499,2]
[422508581,1779006655000,-1056.6648868,0.00040499,2]
[422508582,1779006655000,-5329.17712753,0.00040499,2]
[422508584,1779006655000,-1527.78483184,0.00040499,2]
[422508578,1779006655000,-1078.81070581,0.00040499,30]
[422508598,1779006655000,-322.97732946,0.00040499,60]
[422508618,1779006655000,-177.96499198,0.00040499,2]
[422508634,1779006655000,-220.05318841,0.00040499,2]
[422508619,1779006655000,-1560.28514912,0.00040499,30]
[422508657,1779006655000,-2260.05832322,0.00040499,2]
[422508660,1779006655000,-188.48923343,0.00040499,120]
[422508662,1779006655000,-168.34012225,0.00040499,30]
[422508658,1779006655000,-444.37112195,0.00040499,120]
[422508653,1779006655000,-1123.68230108,0.00040499,5]
[422508661,1779006655000,-2990.59417629,0.00040499,30]
[422508659,1779006655000,-76010.45763666,0.00040499,2]
[422508663,1779006655000,-158.30813355,0.00040499,30]
[422508675,1779006655000,-223.50874349,0.00040499,120]
[422508667,1779006655000,-12574.59377024,0.00040499,2]
[422508665,1779006655000,-1153.42450604,0.00040499,30]
[422508676,1779006655000,-1882.39436798,0.00040499,2]
[422508666,1779006655000,-15212.65254581,0.00040499,2]
[422508664,1779006655000,-777.43393398,0.00040499,30]
[422508674,1779006655000,-151.06874556,0.00040499,60]
[422508673,1779006655000,-530.58660747,0.00040499,30]
[422508672,1779006655000,-14864.74012714,0.00040499,60]
[422508670,1779006655000,-502.25481075,0.00040499,120]
[422508668,1779006655000,-360.58343651,0.00040499,120]
[422508669,1779006655000,-182.75479758,0.00040499,30]
[422508671,1779006655000,-416.48791528,0.00040499,30]
[422508677,1779006655000,-7049.89861506,0.00040499,4]
[422508679,1779006655000,-1146.03485972,0.00040499,2]
[422508678,1779006655000,-21403.7843022,0.00040499,10]
[422508682,1779006655000,-1839.78661444,0.00040499,2]
[422508681,1779006655000,-5394.23099941,0.00040499,4]
[422508683,1779006655000,-269.18926281,0.00040499,30]
[422508684,1779006655000,-280.05927403,0.00040499,2]
[422508621,1779006655000,-14762.9819735,0.00040499,120]
[422508655,1779006655000,-1036.84779898,0.00040499,2]
[422508656,1779006655000,-373.85453572,0.00040499,2]
[422508680,1779006655000,-30914.50681303,0.00040499,2]
[422508654,1779006655000,-561.89504263,0.00040499,2]
[422508617,1779006655000,-234.49828014,0.00040499,2]
[422508652,1779006655000,-1626.63842479,0.00040499,2]
[422508615,1779006655000,-165317.03116426,0.00040499,2]
[422508626,1779006655000,-1058.35840726,0.00040499,2]
[422508625,1779006655000,-1309.69212688,0.00040499,2]
[422508627,1779006655000,-223.23934273,0.00040499,30]
[422508636,1779006655000,-193.45,0.00040499,120]
[422508628,1779006655000,-547.05440146,0.00040499,30]
[422508637,1779006655000,-1093.09486154,0.00040499,2]
[422508629,1779006655000,-677.95120217,0.00040499,2]
[422508635,1779006655000,-193.45,0.00040499,120]
[422508631,1779006655000,-753.11811521,0.00040499,2]
[422508633,1779006655000,-227.13407577,0.00040499,5]
[422508685,1779006655000,-412.59839071,0.00040499,2]
[422508630,1779006655000,-8001.62650673,0.00040499,2]
[422508622,1779006655000,-81229.05477068,0.00040499,30]
[422508639,1779006655000,-500.0,0.00040499,7]
[422508632,1779006655000,-641.88748726,0.00040499,2]
[422508646,1779006655000,-3926.97267679,0.00040499,2]
[422508645,1779006655000,-1100.0,0.00040499,2]
[422508647,1779006655000,-934.73094971,0.00040499,2]
[422508648,1779006655000,-493.5085991,0.00040499,2]
[422508644,1779006655000,-1804.46935386,0.00040499,2]
[422508643,1779006655000,-350.56122197,0.00040499,2]
[422508641,1779006655000,-1623.86700537,0.00040499,90]
[422508640,1779006655000,-2500.0,0.00040499,2]
[422508638,1779006655000,-7020.87424269,0.00040499,120]
[422508651,1779006655000,-631.24788339,0.00040499,2]
[422508650,1779006655000,-43089.9592474,0.00040499,5]
[422508649,1779006655000,-268.52534949,0.00040499,120]
[422508642,1779006655000,-153.76297212,0.00040499,120]
[422508729,1779006656000,-12356.52195783,0.00040499,120]
[422508723,1779006656000,-506.95271532,0.00040499,5]
[422508720,1779006656000,-1332.36263324,0.00040499,30]
[422508724,1779006656000,-1940.36602258,0.00040499,30]
[422508718,1779006656000,-158.04992265,0.00040499,120]
[422508719,1779006656000,-761.26215921,0.00040499,2]
[422508725,1779006656000,-13723.41190369,0.00040499,2]
[422508717,1779006656000,-204.47256542,0.00040499,2]
[422508722,1779006656000,-1039.99629527,0.00040499,2]
[422508715,1779006656000,-518.8554887,0.00040499,2]
[422508721,1779006656000,-508.58080004,0.00040499,120]
[422508739,1779006656000,-444.37873786,0.00040499,120]
[422508732,1779006656000,-1531.03976932,0.00040499,2]
[422508740,1779006656000,-1211.7625465,0.00040499,60]
[422508728,1779006656000,-163.18840191,0.00040499,31]
[422508731,1779006656000,-410.18357615,0.00040499,30]
[422508730,1779006656000,-1922.51979834,0.00040499,7]
[422508734,1779006656000,-379.0,0.00040499,2]
[422508733,1779006656000,-1999.3433663,0.00040499,30]
[422508737,1779006656000,-468.36222448,0.00040499,2]
[422508738,1779006656000,-550.76731729,0.00040499,30]
[422508736,1779006656000,-935.88357377,0.00040499,30]
[422508735,1779006656000,-20000.0,0.00040499,2]
[422508743,1779006656000,-10000.0,0.00040499,3]
[422508716,1779006656000,-405.17182568,0.00040499,120]
[422508753,1779006656000,-11897.45598055,0.00040499,2]
[422508741,1779006656000,-4740.7122479,0.00040499,30]
[422508726,1779006656000,-201.53402526,0.00040499,2]
[422508696,1779006656000,-5846.10310591,0.00040499,2]
[422508712,1779006656000,-588.38492546,0.00040499,30]
[422508742,1779006656000,-160.74669814,0.00040499,2]
[422508689,1779006656000,-1152.44735806,0.00040499,120]
[422508686,1779006656000,-20851.81619179,0.00040499,2]
[422508687,1779006656000,-8789.77866199,0.00040499,120]
[422508688,1779006656000,-286.56366923,0.00040499,120]
[422508699,1779006656000,-150.39382266,0.00040499,120]
[422508690,1779006656000,-2501.61133799,0.00040499,2]
[422508701,1779006656000,-898.09695698,0.00040499,2]
[422508702,1779006656000,-211.27908477,0.00040499,120]
[422508700,1779006656000,-2228.98979112,0.00040499,2]
[422508692,1779006656000,-207.93125472,0.00040499,2]
[422508691,1779006656000,-884.97217572,0.00040499,2]
[422508694,1779006656000,-1262.54576193,0.00040499,5]
[422508695,1779006656000,-289.88393279,0.00040499,2]
[422508698,1779006656000,-205.25463468,0.00040499,30]
[422508697,1779006656000,-1150.33208745,0.00040499,2]
[422508693,1779006656000,-15551.054392,0.00040499,30]
[422508703,1779006656000,-472.13697545,0.00040499,2]
[422508714,1779006656000,-397.61359266,0.00040499,30]
[422508707,1779006656000,-4315.8761052,0.00040499,30]
[422508708,1779006656000,-1516.22061832,0.00040499,30]
[422508704,1779006656000,-359.9702429,0.00040499,120]
[422508709,1779006656000,-610.0,0.00040499,2]
[422508710,1779006656000,-12987.72352874,0.00040499,2]
[422508705,1779006656000,-150.0,0.00040499,2]
[422508711,1779006656000,-260.98844327,0.00040499,30]
[422508713,1779006656000,-363.23492875,0.00040499,2]
[422508706,1779006656000,-398.57725393,0.00040499,49]
[422508745,1779006656000,-643.39630996,0.00040499,30]
[422508727,1779006656000,-513.09396624,0.00040499,49]
[422508744,1779006656000,-1603.56998687,0.00040499,2]
[422508790,1779006656000,-160.0,0.00040499,2]
[422508792,1779006656000,-160.0,0.00040499,2]
[422508791,1779006656000,-160.0,0.00040499,2]
[422508779,1779006656000,-160.0,0.00040499,2]
[422508781,1779006656000,-160.0,0.00040499,2]
[422508782,1779006656000,-160.0,0.00040499,2]
[422508786,1779006656000,-160.0,0.00040499,2]
[422508784,1779006656000,-160.0,0.00040499,2]
[422508783,1779006656000,-160.0,0.00040499,2]
[422508785,1779006656000,-160.0,0.00040499,2]
[422508789,1779006656000,-160.0,0.00040499,2]
[422508788,1779006656000,-160.0,0.00040499,2]
[422508787,1779006656000,-160.0,0.00040499,2]
[422508794,1779006656000,-160.0,0.00040499,2]
[422508804,1779006656000,-160.0,0.00040499,2]
[422508805,1779006656000,-160.0,0.00040499,2]
[422508793,1779006656000,-160.0,0.00040499,2]
[422508796,1779006656000,-160.0,0.00040499,2]
[422508803,1779006656000,-160.0,0.00040499,2]
[422508797,1779006656000,-160.0,0.00040499,2]
[422508798,1779006656000,-160.0,0.00040499,2]
[422508795,1779006656000,-160.0,0.00040499,2]
[422508800,1779006656000,-160.0,0.00040499,2]
[422508799,1779006656000,-160.0,0.00040499,2]
[422508802,1779006656000,-160.0,0.00040499,2]
[422508806,1779006656000,-160.0,0.00040499,2]
[422508746,1779006656000,-1460.92182519,0.00040499,10]
[422508780,1779006656000,-160.0,0.00040499,2]
[422508772,1779006656000,-278.0,0.00040499,120]
[422508801,1779006656000,-160.0,0.00040499,2]
[422508776,1779006656000,-278.0,0.00040499,120]
[422508747,1779006656000,-78779.66745019,0.00040499,14]
[422508770,1779006656000,-163.75200715,0.00040499,30]
[422508752,1779006656000,-1990.0,0.00040499,2]
[422508750,1779006656000,-158.15843882,0.00040499,90]
[422508749,1779006656000,-180.0,0.00040499,2]
[422508751,1779006656000,-500.0,0.00040499,2]
[422508756,1779006656000,-227.30358758,0.00040499,30]
[422508754,1779006656000,-318.51398801,0.00040499,2]
[422508757,1779006656000,-181.34053925,0.00040499,120]
[422508758,1779006656000,-159.10976002,0.00040499,120]
[422508760,1779006656000,-163.05696925,0.00040499,120]
[422508765,1779006656000,-159.10976002,0.00040499,120]
[422508759,1779006656000,-159.10976002,0.00040499,120]
[422508755,1779006656000,-16025.84691371,0.00040499,120]
[422508748,1779006656000,-5423.21706216,0.00040499,2]
[422508762,1779006656000,-159.10976002,0.00040499,120]
[422508764,1779006656000,-159.10976002,0.00040499,120]
[422508771,1779006656000,-278.0,0.00040499,120]
[422508775,1779006656000,-278.0,0.00040499,120]
[422508766,1779006656000,-184.77436896,0.00040499,120]
[422508777,1779006656000,-150.0,0.00040499,2]
[422508773,1779006656000,-278.0,0.00040499,120]
[422508769,1779006656000,-236.6981167,0.00040499,60]
[422508763,1779006656000,-159.10976002,0.00040499,120]
[422508768,1779006656000,-1279.72,0.00040499,120]
[422508761,1779006656000,-159.10976002,0.00040499,120]
[422508767,1779006656000,-159.10976001,0.00040499,120]
[422508774,1779006656000,-278.0,0.00040499,120]
[422508778,1779006656000,-160.0,0.00040499,2]
[422508835,1779006657000,-56374.80160619,0.000407,12]
[422508834,1779006657000,-200.0,0.000407,14]
[422508838,1779006657000,-163.0,0.00040718,11]
[422508842,1779006657000,-1540.0,0.0004075,14]
[422508832,1779006657000,-50000.0,0.00040699,120]
[422508841,1779006657000,-1540.0,0.0004075,14]
[422508840,1779006657000,-311.37681882,0.00040744,2]
[422508843,1779006657000,-1540.0,0.0004075,14]
[422508839,1779006657000,-233.27153218,0.00040726,60]
[422508836,1779006657000,-46092.0,0.00040709,120]
[422508847,1779006657000,-303.75652819,0.00040792,120]
[422508848,1779006657000,-224.8179837,0.000408,30]
[422508850,1779006657000,-669.0,0.000408,14]
[422508849,1779006657000,-20117.2815259,0.000408,30]
[422508846,1779006657000,-1000.0,0.00040766,90]
[422508845,1779006657000,-1000.0,0.00040765,90]
[422508863,1779006657000,-16667.94707458,0.000409,2]
[422508852,1779006657000,-2107.96,0.00040854,2]
[422508862,1779006657000,-703.8582331,0.000409,2]
[422508851,1779006657000,-2313.0,0.00040828,11]
[422508831,1779006657000,-2313.0,0.0004068,11]
[422508853,1779006657000,-1000.0,0.00040855,90]
[422508844,1779006657000,-273.51692486,0.00040765,60]
[422508830,1779006657000,-1586.0,0.0004068,11]
[422508822,1779006657000,-1000.0,0.00040541,90]
[422508833,1779006657000,-153.0,0.000407,120]
[422508854,1779006657000,-311.37681882,0.00040883,2]
[422508807,1779006657000,-160.0,0.00040499,2]
[422508810,1779006657000,-236.320001,0.00040499,2]
[422508808,1779006657000,-160.0,0.00040499,2]
[422508811,1779006657000,-1592.75018779,0.00040499,120]
[422508809,1779006657000,-160.0,0.00040499,2]
[422508813,1779006657000,-534.0512539,0.00040499,5]
[422508812,1779006657000,-500.0,0.00040499,120]
[422508814,1779006657000,-226.4192,0.00040499,7]
[422508817,1779006657000,-166.57,0.00040515,120]
[422508819,1779006657000,-303.75652819,0.00040518,120]
[422508816,1779006657000,-505.0,0.00040512,16]
[422508821,1779006657000,-151.87826408,0.00040518,120]
[422508815,1779006657000,-177.106754,0.00040499,30]
[422508824,1779006657000,-1000.0,0.00040581,90]
[422508820,1779006657000,-151.87826409,0.00040518,120]
[422508818,1779006657000,-1000.0,0.00040515,90]
[422508823,1779006657000,-161.4928877,0.00040548,2]
[422508825,1779006657000,-163.0,0.00040587,11]
[422508827,1779006657000,-1000.0,0.00040636,90]
[422508837,1779006657000,-151.35,0.0004071,120]
[422508828,1779006657000,-6784.29,0.00040639,2]
[422508829,1779006657000,-163.0,0.0004068,11]
[422508826,1779006657000,-1946.38074,0.0004061,120]
[422508856,1779006657000,-919.7,0.000409,120]
[422508889,1779006657000,-1000.0,0.00040975,2]
[422508860,1779006657000,-194.168,0.000409,43]
[422508883,1779006657000,-1000.0,0.00040975,2]
[422508887,1779006657000,-1000.0,0.00040975,2]
[422508886,1779006657000,-1000.0,0.00040975,2]
[422508892,1779006657000,-1946.38074,0.00040975,120]
[422508902,1779006657000,-158.44,0.00041,30]
[422508858,1779006657000,-233.463199,0.000409,30]
[422508891,1779006657000,-1946.38074,0.00040975,120]
[422508894,1779006657000,-1946.38074,0.00040975,120]
[422508903,1779006657000,-568505.0,0.00041,120]
[422508898,1779006657000,-2005.9555727,0.00040998,30]
[422508895,1779006657000,-1946.38074,0.00040975,120]
[422508897,1779006657000,-151.0,0.00040997,14]
[422508896,1779006657000,-211.21311246,0.00040996,7]
[422508899,1779006657000,-150.0,0.00040999,120]
[422508901,1779006657000,-60185.10339091,0.00041,120]
[422508900,1779006657000,-1934.38338737,0.00040999,30]
[422508907,1779006657000,-1000000.0,0.00041,120]
[422508905,1779006657000,-1000000.0,0.00041,120]
[422508909,1779006657000,-1000000.0,0.00041,120]
[422508904,1779006657000,-469.17284075,0.00041,30]
[422508908,1779006657000,-1000000.0,0.00041,120]
[422508906,1779006657000,-1000000.0,0.00041,120]
[422508910,1779006657000,-409785.04738195,0.00041,120]
[422508882,1779006657000,-1000.0,0.00040975,2]
[422508879,1779006657000,-2294.9737345,0.00040975,2]
[422508893,1779006657000,-1946.38074,0.00040975,120]
[422508884,1779006657000,-1000.0,0.00040975,2]
[422508859,1779006657000,-194.168,0.000409,43]
[422508857,1779006657000,-200.0,0.000409,17]
[422508861,1779006657000,-200.0,0.000409,20]
[422508880,1779006657000,-1000.0,0.00040975,2]
[422508864,1779006657000,-196.66283171,0.000409,2]
[422508866,1779006657000,-1061.16597686,0.000409,2]
[422508876,1779006657000,-150.0,0.00040975,2]
[422508875,1779006657000,-3316.11994332,0.00040975,2]
[422508865,1779006657000,-2736.8923476,0.000409,2]
[422508867,1779006657000,-1000.0,0.00040901,90]
[422508868,1779006657000,-2313.0,0.00040907,11]
[422508855,1779006657000,-50000.0,0.00040899,120]
[422508869,1779006657000,-1277.0,0.00040926,11]
[422508870,1779006657000,-2845.28183591,0.00040949,50]
[422508885,1779006657000,-1000.0,0.00040975,2]
[422508881,1779006657000,-1000.0,0.00040975,2]
[422508890,1779006657000,-1008.41099095,0.00040975,2]
[422508878,1779006657000,-150.0,0.00040975,2]
[422508877,1779006657000,-17342.44378636,0.00040975,2]
[422508871,1779006657000,-1000.0,0.00040962,90]
[422508874,1779006657000,-150.0,0.00040975,2]
[422508873,1779006657000,-400.0,0.0004097,3]
[422508872,1779006657000,-400.0,0.0004097,3]
[422508888,1779006657000,-1000.0,0.00040975,2]
[422508918,1779006658000,-277.53,0.0002402,2]
[422508922,1779006658000,-2280.74259512,0.00027397,10]
[422508921,1779006658000,-150.0,0.0002058,2]
[422508923,1779006658000,-2787.67131028,0.00027397,10]
[422508927,1779006658000,-155.2,0.00029294,30]
[422508920,1779006658000,-2844.6160946,0.00027397,10]
[422508916,1779006658000,-156.0,0.0002,2]
[422508913,1779006658000,-794.84235015,0.000148,2]
[422508917,1779006658000,-166.52,0.00023588,2]
[422508915,1779006658000,-4229.63719947,0.000148,2]
[422508919,1779006658000,-1312.84452575,0.00025716,7]
[422508914,1779006658000,-30093.99196174,0.000148,2]
[422508912,1779006658000,-14013.67119661,0.000148,2]
[422508911,1779006658000,-615.21547425,0.00025716,7]
[422508924,1779006658000,-1928.06,0.00027564,7]
[422508926,1779006658000,-155.2,0.00028872,7]
[422508936,1779006658000,-309.96996065,0.00036447,2]
[422508928,1779006658000,-1928.06,0.00029412,7]
[422508943,1779006658000,-305.22,0.00014811,2]
[422508944,1779006658000,-3056.6543,0.00014811,2]
[422508942,1779006658000,-13233.80583514,0.00041,120]
[422508938,1779006658000,-300.0,0.00036447,2]
[422508937,1779006658000,-300.0,0.00036447,2]
[422508934,1779006658000,-156.0,0.00035249,30]
[422508932,1779006658000,-156.0,0.00034249,30]
[422508933,1779006658000,-1928.06,0.00034956,60]
[422508930,1779006658000,-1928.06,0.0003126,7]
[422508941,1779006658000,-1928.06,0.00040499,90]
[422508940,1779006658000,-1928.06,0.00038651,60]
[422508931,1779006658000,-1928.06,0.00033108,30]
[422508939,1779006658000,-1928.06,0.00036803,60]
[422508929,1779006658000,-155.2,0.00029715,2]
[422508935,1779006658000,-156.0,0.00036249,30]
[422508925,1779006658000,-155.2,0.00028451,2]
[422508957,1779007231000,10000.0,0.00030137,120]
[422508958,1779007261000,9626.0,0.00030137,120]
[422508959,1779007328000,500.0,0.00028808,120]
[422508963,1779007641000,500.0,0.00029904,120]
[422508964,1779007757000,156.74,7.277e-05,2]
[422508967,1779007758000,156.74,9.898e-05,2]
[422508966,1779007758000,156.74,9.025e-05,2]
[422508965,1779007758000,156.74,8.151e-05,2]
[422508979,1779007831000,-107.21536312,0.00014162,2]
[422508975,1779007831000,-250.0,0.00014,2]
[422508978,1779007831000,-348.78928903,0.00014,2]
[422508977,1779007831000,-951.59844034,0.00014,2]
[422508976,1779007831000,-3135.02966385,0.00014,2]
[422508974,1779007831000,-433.570598,0.00013761,2]
[422508972,1779007831000,-156.74,0.00013394,2]
[422508973,1779007831000,-18.45,0.00013761,2]
[422508969,1779007831000,-156.74,0.00011646,2]
[422508968,1779007831000,-156.74,0.00010772,2]
[422508970,1779007831000,-250.0,0.0001185,2]
[422508985,1779007831000,-2566.60401429,0.00014163,2]
[422508971,1779007831000,-156.74,0.0001252,2]
[422508980,1779007831000,-1092.78463688,0.00014162,2]
[422508995,1779007831000,-156.74,0.00014268,2]
[422508983,1779007831000,-1237.08734021,0.00014163,2]
[422509001,1779007831000,-36410.39139342,0.00014799,2]
[422509000,1779007831000,-500.0,0.00014774,2]
[422508998,1779007831000,-3523.14,0.00014774,2]
[422508993,1779007831000,-200.0,0.00014267,2]
[422508981,1779007831000,-6969.61536312,0.00014163,2]
[422508996,1779007831000,-500.0,0.00014559,2]
[422508997,1779007831000,-171.6,0.00014695,2]
[422508989,1779007831000,-1200.0,0.00014248,2]
[422508987,1779007831000,-1015.20384162,0.00014163,2]
[422508986,1779007831000,-889.89658391,0.00014163,2]
[422508984,1779007831000,-363.22867442,0.00014163,2]
[422508982,1779007831000,-901.23418243,0.00014163,2]
[422508991,1779007831000,-23542.30948133,0.00014249,2]
[422509018,1779007837000,-19459.1032138,0.00014799,2]
[422509017,1779007837000,-10532.99372537,0.00014799,2]
[422509016,1779007837000,-5469.42865526,0.00014799,2]
[422509031,1779007837000,-500.0,0.00014899,2]
[422509029,1779007837000,-500.0,0.00014899,2]
[422509015,1779007837000,-2002.92095852,0.00014799,2]
[422509020,1779007837000,-500.0,0.00014897,2]
[422509025,1779007837000,-500.0,0.00014899,2]
[422509027,1779007837000,-500.0,0.00014899,2]
[422509019,1779007837000,-500.0,0.00014897,2]
[422509033,1779007837000,-3523.14,0.00014899,2]
[422509036,1779007837000,-3523.14,0.00014998,2]
[422509121,1779007838000,-151.0,0.00016207,2]
[422509119,1779007838000,-151.0,0.00016207,2]
[422509123,1779007838000,-151.0,0.00016207,2]
[422509117,1779007838000,-151.0,0.00016207,2]
[422509115,1779007838000,-151.0,0.00016207,2]
[422509127,1779007838000,-151.0,0.00016207,2]
[422509113,1779007838000,-3388.61,0.00016116,2]
[422509122,1779007838000,-151.0,0.00016207,2]
[422509128,1779007838000,-151.0,0.00016207,2]
[422509129,1779007838000,-151.0,0.00016207,2]
[422509126,1779007838000,-151.0,0.00016207,2]
[422509125,1779007838000,-151.0,0.00016207,2]
[422509124,1779007838000,-151.0,0.00016207,2]
[422509130,1779007838000,-151.0,0.00016207,2]
[422509132,1779007838000,-151.0,0.00016207,2]
[422509133,1779007838000,-151.0,0.00016207,2]